Cogmind - Beta 10.2 --- EXPLORER MODE // 2021.10.31 @ 14:01:48 Player: Giant Eel Result: Destroyed by D-53 Grenadier with Mini Grenade Launcher Performance ------------- Evolutions (0) 0 Regions Visited (2) 400 Robots Destroyed (6) 30 Value Destroyed (125) 125 Prototype IDs (3) 60 Alien Tech Used (0) 0 Bonus (0) 0 TOTAL SCORE: 615 Bonus ------- None Cogmind --------- Core Integrity 0/250 Matter 173/300 Energy 100/100 System Corruption 1% Temperature Cool (0) Movement Core (800) Ox15 Location -10/Mines Parts ------- > --- POWER (1) -------- (None) > --- PROPULSION (3) --- (None) > --- UTILITY (2) ------ Large Storage Unit High-capacity Storage Unit > --- WEAPON (2) ------- (None) > --- INVENTORY (18) --- Ion Engine Light Treads Light Treads Large Storage Unit Structural Scanner Signal Interpreter Terrain Scanner Light Armor Plating Grenade Launcher Peak State ------------ > --- POWER ------------ Ion Engine > --- PROPULSION ------- Aluminum Leg Aluminum Leg Aluminum Leg > --- UTILITY ---------- Medium Storage Unit Light Armor Plating > --- WEAPON ----------- Spread Laser Spread Laser > --- INVENTORY -------- Ion Engine Light Treads Light Treads Structural Scanner Signal Interpreter Terrain Scanner Utility Shielding Medium Laser [Rating: 10] Favorites ----------- Power Ion Engine Engine Ion Engine Propulsion Aluminum Leg Leg Aluminum Leg Utility Large Storage Unit Storage Large Storage Unit Protection Light Armor Plating Weapon Assault Rifle Energy Gun Medium Laser Ballistic Gun Assault Rifle Launcher Grenade Launcher Build | -11 -10 -10 ------- Run | Scr Mat Min Slots Evolved 1 | . 1 . Power . | . . . Propulsion 1 | . 1 . Utility . | . . . Weapon . | . . . Parts Attached 12 | . 12 . Power . | . . . Engine . | . . . Core . | . . . Reactor . | . . . Propulsion 2 | . 2 . Treads . | . . . Leg 2 | . 2 . Wheel . | . . . Hover . | . . . Flight . | . . . Utility 3 | . 3 . Device . | . . . Storage 3 | . 3 . Processor . | . . . Hackware . | . . . Protection . | . . . Artifact . | . . . Weapon 7 | . 7 . Energy Gun 4 | . 4 . Energy Cannon . | . . . Ballistic Gun 1 | . 1 . Ballistic Cannon . | . . . Launcher 2 | . 2 . Special Weapon . | . . . Impact Weapon . | . . . Slashing Weapon . | . . . Piercing Weapon . | . . . Special Melee Weapon . | . . . Unidentified Prototypes . | . . . Parts Lost 6 | . . 6 Power 1 | . . 1 Propulsion 3 | . . 3 Utility . | . . . Weapon 2 | . . 2 Highest Loss Streak 6 | . . 6 Average Slot Usage (%) 98 | . 99 90 Engine 11 | . 12 10 Leg 36 | . 36 32 Storage 20 | . 19 25 Protection 4 | . 4 . Energy Gun 11 | . 11 10 Ballistic Gun 11 | . 11 10 Naked Turns . | . . . Heaviest Build 57 | 20 57 57 Greatest Support 30 | 20 30 30 Greatest Overweight (x) 15 | . 1 15 Average Overweight (x) . | . . 1 Largest Inventory Capacity 18 | . 18 18 Average Capacity 14 | . 13 18 Most Carried 9 | . 9 9 Average Carried 8 | . 8 9 Final Capacity 18 | 8 18 18 Final Carried 9 | 7 9 9 Class Distribution -------------------- 100% | Hacker-Mutant Dominant Class ---------------- Hacker-Mutant | -10/Materials Hacker-Mutant | -10/Mines Resources | -11 -10 -10 ----------- Run | Scr Mat Min Matter Collected 338 | 173 138 27 Remotely . | . . . Salvage Created 164 | . 152 12 Parts 9 | . 9 . Haulers Intercepted . | . . . Recyclers Shooed 3 | . 3 . Parts Field Recycled . | . . . Retrieved Matter . | . . . Parts Self-Destructed . | . . . Prevented . | . . . Kills | -11 -10 -10 ------- Run | Scr Mat Min Combat Hostiles Destroyed 3 | . 2 1 Guns 2 | . 1 1 AOE 1 | . 1 . Classes Destroyed 4 | . 3 1 Recycler 2 | . 2 . Watcher 2 | . 2 . Grunt 2 | . 2 . Assembled 1 | . . 1 Best Kill Streak 6 | . 6 1 Combat Bots Only 2 | . 2 1 Max Kills in Single Turn 1 | . 1 1 Gunslinging . | . . . Exploded 1 | . 1 . Melee . | . . . Uniques/NPCs Destroyed . | . . . Combat | -11 -10 -10 -------- Run | Scr Mat Min Damage Taken 793 | . 64 729 Core 256 | . 40 216 Absorbed by Shields . | . . . Core Remaining (%) 100 | 100 . . Volleys Fired 18 | . 13 5 Largest 2 | . 2 2 Hottest 130 | . 130 70 Shots Fired 35 | . 25 10 Gun 30 | . 20 10 Cannon . | . . . Launcher 5 | . 5 . Special . | . . . Kinetic 5 | . . 5 Thermal 25 | . 20 5 Explosive 4 | . 4 . Electromagnetic 1 | . 1 . Robot Hit Streak 23 | . 23 6 Robot Miss Streak 3 | . 3 1 Penetration Max . | . . . Secondary Targets . | . . . Shots Hit Robots 18 | . 11 7 Core Hits 24 | . 22 2 Critical Hits . | . . . Critical Kills . | . . . Critical Parts Destroyed . | . . . Melee Attacks . | . . . Impact . | . . . Slashing . | . . . Piercing . | . . . Sneak Attacks . | . . . Combat Hostiles . | . . . Follow-up Attacks . | . . . Damage Inflicted 432 | . 373 59 Guns 251 | . 192 59 Cannons . | . . . Explosions 181 | . 181 . Melee . | . . . Ramming . | . . . Kinetic 23 | . . 23 Thermal 228 | . 192 36 Explosive 181 | . 181 . Electromagnetic . | . . . Impact . | . . . Slashing . | . . . Piercing . | . . . Highest Corruption 1 | . 1 1 Average Corruption 1 | . 1 1 Corruption Purged . | . . . Effects 2 | . . 2 Message Errors 1 | . . 1 Data Loss (minor) 1 | . . 1 Overload Shots . | . . . Overflow Damage 3 | . 3 . Projectiles . | . . . Explosions 3 | . 3 . Melee . | . . . Knockbacks . | . . . Impact . | . . . Kinetic . | . . . Secondary . | . . . Self-Inflicted Damage 2 | . 2 . Shots 1 | . 1 . Rammed . | . . . Targets Rammed . | . . . Kicked . | . . . Crushed . | . . . Highest Temperature 703 | . 703 45 Average Temperature 272 | . 325 23 Received Heat Transfer 18 | . 18 . Effects 15 | . 15 . Shutdowns 4 | . 4 . Energy Bleed 1 | . 1 . Interference 2 | . 2 . Matter Decay 3 | . 3 . Damage (minor) 3 | . 3 . Damage (major) 1 | . 1 . Damage (core) 1 | . 1 . Siege Activations . | . . . Robots Corrupted . | . . . Combat Hostiles . | . . . Parts Fried . | . . . Impact Corruptions . | . . . Robots Melted . | . . . Combat Hostiles . | . . . Parts Melted . | . . . Heat Transferred 346 | . 235 111 Parts Sabotaged . | . . . Parts Stolen . | . . . Parts Stripped . | . . . Power Chain Reactions . | . . . Missiles Intercepted . | . . . Alert | -11 -10 -10 ------- Run | Scr Mat Min Peak Influence 101 | . 101 30 Initial . | . . . Average 31 | . 33 10 Maximum Alert Level . | . . . Low Security (%) 100 | . 100 100 Level 1 . | . . . Level 2 . | . . . Level 3 . | . . . Level 4 . | . . . Level 5 . | . . . High Security . | . . . Max Security . | . . . Squads Dispatched . | . . . Investigation . | . . . Extermination . | . . . Reinforcement . | . . . Assault . | . . . Garrison . | . . . Intercept . | . . . Construction Impeded . | . . . Haulers Reinforced . | . . . Stealth | -11 -10 -10 --------- Run | Scr Mat Min Distress Signals 2 | . 1 1 Communications Jammed . | . . . Distress Signals . | . . . Times Spotted 9 | . 5 4 Peak Tracking Total 3 | . 3 3 Tactical Retreats . | . . . Traps | -11 -10 -10 ------- Run | Scr Mat Min Traps Triggered 1 | . 1 . Indirectly . | . . . Trap Hack Attempts . | . . . Triggered . | . . . Disarmed 3 | . 3 . Reprogrammed 3 | . 3 . Reused . | . . . Traps Extracted . | . . . Installed . | . . . Triggered . | . . . Machines | -11 -10 -10 ---------- Run | Scr Mat Min Machines Disabled . | . . . Max in Single Turn . | . . . Machines Sabotaged . | . . . Garrisons Compromised . | . . . Overloaded Fab Kills . | . . . Fab Network Shutdowns . | . . . Hacking | -11 -10 -10 --------- Run | Scr Mat Min Machines Accessed 7 | . 7 . Terminals 7 | . 7 . Fabricators . | . . . Repair Stations . | . . . Recycling Units . | . . . Scanalyzers . | . . . Garrison Access . | . . . Total Hacks 30 | . 30 . Successful 27 | . 27 . Failed 3 | . 3 . Catastrophic . | . . . Database Lockouts . | . . . Manual 19 | . 19 . Terminals 30 | . 30 . Fabricators . | . . . Repair Stations . | . . . Recycling Units . | . . . Scanalyzers . | . . . Garrison Access . | . . . Terminal Hacks 11 | . 11 . Prototype ID Bank 2 | . 2 . Terminal Index 1 | . 1 . Locate Traps 4 | . 4 . Disarm Traps 1 | . 1 . Reprogram Traps 1 | . 1 . Dispatch Records 1 | . 1 . Registered Prototypes 1 | . 1 . Fabricator Hacks . | . . . Repair Station Hacks . | . . . Recycling Unit Hacks . | . . . Scanalyzer . | . . . Garrison Access Hacks . | . . . Unauthorized Hacks 16 | . 16 . Terminals 16 | . 16 . Track 6 | . 6 . Assimilate 3 | . 3 . Botnet 7 | . 7 . Fabricators . | . . . Repair Stations . | . . . Recycling Units . | . . . Scanalyzers . | . . . Garrison Access . | . . . Data Cores Recovered . | . . . Used . | . . . Hacking Detections 4 | . 4 . Full Trace Events 2 | . 2 . Feedback Events . | . . . Feedback Blocked . | . . . Robot Schematics Acquired . | . . . Robots Built . | . . . Matter . | . . . Time . | . . . Total Robot Build Rating . | . . . Part Schematics Acquired . | . . . Parts Built . | . . . Matter . | . . . Time . | . . . Total Part Build Rating . | . . . Parts Repaired . | . . . Time . | . . . Parts Recycled . | . . . Recycled Matter . | . . . Retrieved Matter . | . . . Retrieved Components . | . . . Parts Scanalyzed . | . . . Part Schematics Acquired . | . . . Parts Damaged . | . . . Bothacking | -11 -10 -10 ------------ Run | Scr Mat Min Used RIF Installer . | . . . Robots Hacked . | . . . Non-combat . | . . . Combat . | . . . Robot Hacks Applied . | . . . Relay Couplers Released . | . . . Robots Rewired . | . . . Allies Hacked . | . . . Hacks Repelled . | . . . Allies | -11 -10 -10 -------- Run | Scr Mat Min Total Allies . | . . . Largest Group . | . . . Highest-Rated Group . | . . . Highest-Rated Ally . | . . . Total Orders . | . . . Ally Attacks . | . . . Total Damage . | . . . Kills . | . . . Allies Corrupted . | . . . Allies Melted . | . . . Intel | -11 -10 -10 ------- Run | Scr Mat Min Robot Analysis Total . | . . . Derelict Logs Recovered . | . . . Drone Launches . | . . . Drone Recoveries . | . . . Exploration | -11 -10 -10 ------------- Run | Scr Mat Min Turns Passed 864 | . 779 85 Spaces Moved 471 | 1 428 42 Core 1 | . . 1 Treads . | . . . Legs 470 | 1 428 41 Wheels . | . . . Hover . | . . . Flight . | . . . Fastest Speed 120 | 120 120 150 Average Speed 138 | 120 135 176 Slowest Speed 800 | 120 150 800 Overloaded Moves . | . . . Propulsion Burnouts . | . . . Robots Hopped . | . . . Cave-ins Triggered . | . . . Exploration Rate (%) 28 | 2 62 20 Regions Visited 2 Branch Regions 1 Pre-discovered Areas . | . . . Known Exits Taken 2 | 1 1 . Unknown Exits Taken . | . . . Scrap Searched . | . . . Spaces Dug . | . . . Terrain Destroyed 30 | . 30 . Melee . | . . . Projectile . | . . . AOE 30 | . 30 . Terrain Rammed . | . . . Walls Destroyed . | . . . Machines Disabled . | . . . Actions | -11 -10 -10 --------- Run | Scr Mat Min Total 651 | . 604 47 Wait 141 | . 141 . Move 469 | . 427 42 Hop . | . . . Pick Up 2 | . 2 . Fast Attach 6 | . 6 . Attach 1 | . 1 . Detach 1 | . 1 . Swap 5 | . 5 . Drop 8 | . 8 . Fire 18 | . 13 5 Melee . | . . . Ram . | . . . Kick . | . . . Crush . | . . . Escape Stasis . | . . . Rewire . | . . . Trap . | . . . Miscellaneous . | . . . Route ------- -11/Scrapyard -10/Materials (discovered 3 exits: *Mat x2 / *Min) -10/Mines History --------- Turn | Location | Event 1 | -11/Scrapyard | Identified exit to Materials 1 | -11/Scrapyard | Discovered exit to Materials (range 0) 1 | -11/Scrapyard | Entered Materials 1 | -10/Materials | Evolved 1 slot: Propulsion x1 191 | -10/Materials | Identified exit to Materials 191 | -10/Materials | Discovered exit to Materials (range 15) 308 | -10/Materials | Build established: Hacker-Mutant 387 | -10/Materials | Discovered exit to Materials (range 16) 734 | -10/Materials | Identified exit to Mines 734 | -10/Materials | Discovered exit to Mines (range 7) 780 | -10/Materials | Entered Mines 781 | -10/Mines | Assembled infested the area 786 | -10/Mines | Assisted by a Guerilla fighting off Assembled 847 | -10/Mines | Core integrity fell below 50% 863 | -10/Mines | Core integrity fell below 20% 865 | -10/Mines | Destroyed by D-53 Grenadier with Mini Grenade Launcher Last Messages --------------- 00810_ as-94834 destroyed. 00813_ Acquired 12 matter. 00825_ Acquired 15 matter. 00828_ as-67190 destroyed. 00834_ 6Z UQ0IZY/0T/TJ#MEC1TQM4B7WSCW 00839_ The unstable cave ceiling collapses. 00840_ Aluminum Leg destroyed. 00841_ The unstable cave ceiling collapses. 00845_ Bore Cannon crushed. 00848_ The unstable cave ceiling collapses. 00855_ System corrupted: Component data lost. 00855_ The unstable cave ceiling collapses. 00856_ Aluminum Leg destroyed. 00856_ Assault Rifle destroyed. 00856_ Med. Laser destroyed. 00859_ Ion Engine destroyed. 00860_ The unstable cave ceiling collapses. 00861_ Aluminum Leg destroyed. 00863_ The unstable cave ceiling collapses. 00864_ G-34 Mercenary destroyed. Map ----- +----------------------------------------------------+ | | | | | | | | | | | | | | | | | | | | | | | | | | | ?????????????????????????????????????????????????? | | ?????????????????????????????????????????????????? | | ?????????????????????????????????????????????????? | | ?????????????????????????????????????????????????? | | ?????????????????????????????????????????????????? | | ?????########????????????????????????????????????? | | ?????# #????????????????????????????????????? | | ?????# #######????######????????????????????? | | ###### #?#### #???????????????????? | | ##### ### #???????????????????? | | ###### #???# ## ######??????????????? | | ?????# #???# # #??????????????? | | ????## #?### # @ #?????????????? | | ???## #### # #?????????????? | | ???# = ### g ?????????????????? | | ??## ## % ??????????????? | | ??# # d g ????????????? | | ???# d < ##### ??????????? | | ??## = # #???? ###??????????? | | ??# # # #?????####????????????? | | ??# # # ## ##?????????????????????? | | ??# # ######??????????????????????? | | ??# % ###???????????????????????????? | | % # ##??????????????????????????????? | | # #???????????????????????????????? | | #### ####???????????????????????????????? | | # #??###??????????????????????????????????? | | ####???????????????????????????????????????? | | ### #???????????????????????????????????????????? | | ??# ????????????????????????????????????????????? | | ??# ????????????????????????????????????????????? | | ??# ????????????????????????????????????????????? | | ??# ?????????????????????????????????????????????? | | ?????????????????????????????????????????????????? | | ?????????????????????????????????????????????????? | | ?????????????????????????????????????????????????? | | ?????????????????????????????????????????????????? | +----------------------------------------------------+ Best States ------------- Heat Dissipation 25 Energy Generation 10 Energy Capacity 250 Matter Stores 273 Matter Capacity 300 Sight Range 16 Terrain Scan Density 10 Armor Coverage 150 Resistance: KI 35 Resistance: TH 35 Resistance: EX 35 Resistance: EM 35 Resistance: I 35 Resistance: S 35 Resistance: P 35 Evasion (%) 40 Offensive Hacking 20 Item Schematics ----------------- None Robot Schematics ------------------ None Fabricated ------------ Nothing Alien Tech Used ----------------- None Achievements -------------- None Challenges ------------ None Game ------ Seed NovaAutogunMaul Manual? 0 Play Time 00:15:39 Cumulative 15.3 hours Start 2021.10.31 @ 13:46:43 End 2021.10.31 @ 14:01:48 Sessions 1 Manual Loads 0 Difficulty Explorer Special Mode None Game No. 11 Rogue 5 Adventurer 0 Explorer 6 Win Type - Total 0 Types 0/0/0/0/0/0/0/0/0 Lore% 18 Gallery% 21 Achievement% 21 Wizard Run 0 Options --------- ASCII 0 Keyboard 1 Movement Vi Keybinds 0 Fullscreen 1 Font 36/X11Bold Map View 76x50 Tactical HUD 1 Map Filters NONE Filters NONE Steam 1 RUN: 60e20961-75ce-4412-98d6-1689322e80c5